bitfinex/quotes_ETHUSD_20241019
["timestamp","ask_amount","ask_price","bid_price","bid_amount"]
[1729307522915,3.76149,2658.6,2657.3,0.7799]
[1729307523096,3.76149,2658.6,2657.5,0.7799]
[1729307523440,3.7616,2658.5,2657.5,0.7799]
[1729307523739,3.76149,2658.6,2657.5,0.7799]
[1729307523740,3.76147,2658.6,2657.5,0.7799]
[1729307523944,3.76155,2658.5,2657.5,0.7799]
[1729307525349,0.55,2658.6,2657.5,0.7799]
[1729307525506,1.17436235,2658.6,2657.5,0.7799]
[1729307525701,3.76114,2658.8,2657.5,0.7799]
[1729307526037,3.7613,2658.7,2657.5,0.7799]
[1729307526243,23.70304,2658.9,2657.5,0.7799]
[1729307526446,3.76109,2658.8,2657.5,0.7799]
[1729307526606,3.76129,2658.7,2657.5,0.7799]
[1729307526807,2.746438,2658.7,2657.5,0.7799]
[1729307527016,3.76138,2658.6,2657.5,0.7799]
[1729307531778,6.507758,2658.7,2657.5,0.7799]
[1729307532075,3.7614,2658.6,2657.5,0.7799]
[1729307532867,3.7616,2658.5,2657.5,0.7799]
[1729307533083,0.7523,2658.4,2657.5,0.7799]
[1729307535084,8.27581,2658.4,2657.5,0.7799]
[1729307535294,8.2758,2658.4,2657.5,0.7799]
[1729307535495,3.76181,2658.3,2657.5,0.7799]
[1729307536074,4.51403,2658.4,2657.5,0.7799]
[1729307536306,0.490693,2658.3,2657.5,0.7799]
[1729307537297,0.55,2658.2,2657.5,0.7799]
[1729307537501,3.76208,2658.1,2657.5,0.7799]
[1729307538404,0.55,2658.2,2657.5,0.7799]
[1729307538569,3.76187,2658.3,2657.5,0.7799]
[1729307538570,4.31188,2658.3,2657.5,0.7799]
[1729307538783,0.807359,2658.2,2657.5,0.7799]
[1729307542309,4.569309,2658.2,2657.5,0.7799]
[1729307542614,0.807359,2658.2,2657.5,0.7799]
[1729307544943,4.569329,2658.2,2657.5,0.7799]
[1729307547525,0.55,2658.1,2657.5,0.7799]
[1729307547705,4.2741629,2658.0,2657.5,0.7799]
[1729307548815,0.5119329,2658.0,2657.5,0.7799]
[1729307549015,4.2741629,2658.0,2657.5,0.7799]
[1729307549939,0.5119329,2658.0,2657.5,0.7799]
[1729307551002,4.2742729,2658.0,2657.5,0.7799]
[1729307551206,0.85863629,2657.9,2657.5,0.7799]
[1729307551443,4.62101629,2657.9,2657.5,0.7799]
[1729307552047,0.85863629,2657.9,2657.5,0.7799]
[1729307552246,4.62110629,2657.9,2657.5,0.7799]
[1729307553453,3.76253,2657.8,2657.5,0.7799]
[1729307553615,0.83836363,2657.7,2657.5,0.7799]
[1729307554526,3.76251,2657.8,2657.5,0.7799]
[1729307554924,3.76266,2657.7,2657.5,0.7799]
[1729307555122,3.76266,2657.7,2655.8,1.3757]
[1729307555324,3.76279,2657.6,2656.1,0.8257]
[1729307555536,3.763,2657.5,2656.3,0.8257]
[1729307555728,4.515579,2657.5,2656.3,0.8257]
[1729307556262,3.76332,2657.3,2656.3,0.8257]
[1729307556560,3.76336,2657.2,2656.3,0.8257]
[1729307556710,3.76374,2657.0,2656.3,0.8257]
[1729307557112,0.3929,2657.4,2656.3,0.8257]
[1729307557113,4.3569,2657.4,2656.3,0.8257]
[1729307557312,3.76388,2656.9,2656.3,0.8257]
[1729307557550,4.31401,2656.8,2656.3,0.8257]
[1729307557849,3.76407,2656.7,2656.3,0.8257]
[1729307558007,3.76433,2656.6,2655.3,0.8257]
[1729307558213,0.55,2656.3,2655.3,0.8257]
[1729307558455,0.55,2656.5,2655.5,0.8257]
[1729307558660,0.807858,2656.4,2655.5,0.8257]
[1729307559066,11.2258,2656.9,2655.5,1.42201084]
[1729307559394,11.2258,2656.9,2655.6,0.8257]
[1729307559395,0.55,2656.8,2655.6,0.8257]
[1729307561394,3.76429,2656.6,2655.6,0.8257]
[1729307561556,0.55,2656.5,2655.6,0.8257]
[1729307561763,3.76435,2656.5,2655.6,0.8257]
[1729307561985,0.431435,2656.4,2655.6,0.8257]
[1729307562186,4.31422,2656.6,2655.6,0.8257]
[1729307563088,0.55,2656.8,2655.7,0.59631084]
[1729307563410,0.55,2656.8,2655.8,0.8257]
[1729307563607,3.76355,2657.1,2655.8,0.8257]
[1729307563608,7.52716,2657.1,2655.8,0.8257]
[1729307563767,0.752716,2657.0,2655.8,0.8257]
[1729307564126,3.76355,2657.1,2655.8,0.8257]
[1729307567572,0.55,2657.2,2655.8,0.8257]
[1729307567773,8.01223216,2657.3,2655.8,0.8257]
[1729307568719,7.462,2657.3,2655.9,0.8257]
[1729307569017,7.462,2657.3,2656.0,0.8257]
[1729307569399,7.462,2657.3,2656.2,3.0]
[1729307569612,7.462,2657.3,2655.7,0.8257]
[1729307569914,7.462,2657.3,2655.9,0.8257]
[1729307570100,7.462,2657.3,2656.0,0.19709234]
[1729307570280,7.462,2657.3,2656.1,0.8257]
[1729307572712,0.752579,2657.5,2656.1,0.8257]
[1729307573309,3.7631,2657.4,2656.1,0.8257]
[1729307573684,8.671549,2657.5,2656.3,0.8257]
[1729307573885,4.6302449,2657.4,2656.4,0.8257]
[1729307574622,4.6302349,2657.4,2656.4,0.8257]
[1729307577017,0.8671549,2657.4,2656.4,0.8257]
[1729307577238,0.752579,2657.5,2656.4,0.8257]
[1729307577524,0.55,2657.6,2656.4,0.8257]
[1729307577947,4.31251,2657.8,2656.4,0.8257]
[1729307578107,4.31254,2657.8,2656.4,0.8257]
[1729307578731,4.31254,2657.8,2656.4,0.88977986]
[1729307579044,0.807492,2657.7,2656.4,0.8257]
[1729307580726,4.570162,2657.7,2656.4,0.8257]
[1729307581506,0.807492,2657.7,2656.4,0.8257]
[1729307581957,4.570142,2657.7,2656.4,0.8257]
[1729307582504,0.807492,2657.7,2656.4,0.8257]
[1729307584140,4.570162,2657.7,2656.4,0.8257]
[1729307585127,0.5120162,2657.6,2656.4,0.8257]
[1729307588045,3.76267,2657.7,2656.4,0.8257]
[1729307588318,3.76267,2657.7,2656.1,0.59631084]
[1729307588319,0.0654199,2658.7,2657.5,0.7557]
[1729307588521,0.0654199,2658.7,2657.8,0.55]
[1729307588767,0.39258734,2658.6,2658.1,0.7557]
[1729307588962,0.0780142,2659.4,2658.3,0.7557]
[1729307589133,0.39248893,2659.0,2658.3,0.7557]
[1729307589539,0.0780142,2659.4,2658.3,0.7557]
[1729307589766,0.3924834,2659.0,2658.3,0.7557]
[1729307589921,0.0780142,2659.4,2658.3,0.7557]
[1729307590336,0.39248515,2659.0,2658.3,0.7557]
[1729307590533,0.0780142,2659.4,2658.3,0.7557]
[1729307591868,0.0780142,2659.4,2658.6,0.55]
[1729307592158,0.0780142,2659.4,2658.7,0.7557]
[1729307592565,0.0780142,2659.4,2658.5,3.0]
[1729307592566,0.0780142,2659.4,2658.9,0.7557]
[1729307592916,0.0780142,2659.4,2658.4,2.20993051]
[1729307592917,0.0780142,2659.4,2659.1,0.7557]
[1729307593319,0.0780142,2659.4,2659.2,0.07520409]
[1729307593520,0.39262541,2661.1,2659.3,0.7557]
[1729307593521,3.75851,2660.7,2659.3,0.7557]
[1729307593831,0.375851,2660.6,2659.3,0.7557]
[1729307594930,4.134401,2660.6,2659.3,0.7557]
[1729307595133,0.375851,2660.6,2659.3,0.7557]
[1729307595544,3.7587,2660.5,2659.3,0.7557]
[1729307595869,0.375851,2660.6,2659.3,0.7557]
[1729307596033,4.134401,2660.6,2659.3,0.7557]
[1729307596432,3.75886,2660.4,2659.3,0.7557]
[1729307596576,4.66995744,2660.5,2659.3,0.7557]
[1729307596737,3.75885,2660.4,2659.3,0.7557]
[1729307597771,4.66995744,2660.5,2659.3,0.7557]
[1729307597983,3.75895,2660.4,2659.3,0.7557]
[1729307598159,0.84289074,2660.3,2659.3,0.7557]
[1729307598483,4.60187074,2660.3,2659.3,0.7557]
[1729307599483,0.84289074,2660.3,2659.3,0.7557]
[1729307599661,4.60187074,2660.3,2659.3,0.7557]
[1729307600994,3.75925,2660.1,2659.3,0.7557]
[1729307601296,3.75975,2659.8,2659.3,0.7557]
[1729307601454,3.75984,2659.7,2659.3,0.7557]
[1729307602264,3.75997,2659.6,2659.3,0.7557]
[1729307602582,3.7599,2659.7,2659.3,0.7557]
[1729307602795,0.37599,2659.6,2659.3,0.7557]
[1729307603091,3.76011,2659.5,2657.7,0.7896]
[1729307603262,3.76011,2659.5,2657.9,0.7896]
[1729307603457,7.52032,2659.5,2658.1,0.7896]
[1729307603663,1.20219,2659.6,2658.1,0.7896]
[1729307603859,3.76024,2659.5,2658.1,0.7896]
[1729307604393,3.7604,2659.3,2658.1,0.7896]
[1729307604692,3.76062,2659.2,2658.1,0.7896]
[1729307605759,3.76067,2659.1,2658.1,3.7896]
[1729307605966,0.752129,2659.0,2657.8,0.7896]
[1729307606285,3.76062,2659.2,2657.9,0.7896]
[1729307606656,3.76062,2659.2,2658.0,0.7896]
[1729307607178,3.76061,2659.2,2658.0,0.7896]
[1729307608554,7.52126,2659.2,2658.0,0.7896]
[1729307608798,7.52123,2659.2,2658.0,0.7896]
[1729307609102,0.752123,2659.1,2658.1,0.7896]
[1729307609388,3.76061,2659.2,2658.1,0.7896]
[1729307610093,3.7607,2659.1,2658.1,0.7896]
[1729307610291,3.76082,2659.0,2658.1,0.7896]
[1729307610449,3.76088,2659.0,2658.1,0.7896]
[1729307610648,0.376088,2658.9,2658.1,0.7896]
[1729307611596,4.137058,2658.9,2658.1,0.7896]
[1729307611758,0.376088,2658.9,2658.1,0.7896]
[1729307612094,3.76028,2659.4,2658.1,0.7896]
[1729307612295,3.76054,2659.2,2658.1,0.7896]
[1729307612671,3.76069,2659.1,2658.1,0.7896]
[1729307613205,3.76054,2659.2,2658.1,0.7896]
[1729307613363,7.52119,2659.2,2658.1,0.7896]
[1729307613689,0.752119,2659.1,2658.1,0.7896]
[1729307613886,3.76071,2659.1,2658.1,0.7896]
[1729307614596,3.76054,2659.2,2658.1,0.7896]
[1729307614597,0.8018,2659.2,2658.1,0.7896]
[1729307614896,3.76101,2658.9,2658.1,0.7896]
[1729307615055,0.8018,2659.2,2658.1,0.7896]
[1729307615279,3.76074,2659.1,2658.1,0.7896]
[1729307615505,0.376074,2659.0,2658.1,0.7896]
[1729307615898,4.136884,2659.0,2658.1,0.7896]
[1729307616278,0.376074,2659.0,2658.1,0.7896]
[1729307616474,4.136904,2659.0,2658.1,0.7896]
[1729307617983,7.897794,2659.0,2658.1,0.7896]
[1729307618179,0.7897794,2658.9,2658.1,0.7896]
[1729307618425,3.76118,2658.8,2658.1,0.7896]
[1729307618723,7.52239,2658.8,2658.1,0.7896]
[1729307618882,3.76118,2658.8,2658.1,0.7896]
[1729307619078,3.76109,2658.8,2658.1,0.7896]
[1729307619278,3.76176,2658.4,2658.1,0.7896]
[1729307619517,3.76182,2658.3,2658.1,0.7896]
[1729307619720,3.76183,2658.3,2658.1,0.7896]
[1729307620023,3.76176,2658.4,2658.1,0.7896]
[1729307620615,3.76182,2658.3,2656.6,0.8214]
[1729307620817,3.76182,2658.3,2656.9,0.8214]
[1729307621784,3.76176,2658.4,2657.0,0.55]
[1729307621785,7.52354,2658.4,2657.0,0.55]
[1729307621981,3.76187,2658.3,2657.1,0.8214]
[1729307622527,3.76194,2658.2,2657.1,0.8214]
[1729307622751,3.76216,2658.1,2657.1,0.8214]
[1729307623098,3.76225,2658.0,2657.1,0.8214]
[1729307623633,3.76238,2657.9,2657.1,0.8214]
[1729307624528,3.76225,2658.0,2657.1,0.8214]
[1729307624911,3.76236,2657.9,2657.1,0.8214]
[1729307627030,7.52486,2657.9,2657.1,0.8214]
[1729307627233,0.752486,2657.8,2657.1,0.8214]
[1729307627425,3.76236,2657.9,2657.1,0.8214]
[1729307627607,3.76253,2657.8,2657.1,0.8214]
[1729307629815,3.76236,2657.9,2657.1,0.8214]
[1729307630013,3.76224,2658.0,2657.1,0.8214]
[1729307630222,4.33966934,2658.1,2657.1,0.8214]
[1729307630430,7.7259,2658.3,2657.1,0.8214]
[1729307630431,3.76203,2658.2,2657.1,0.8214]
[1729307632347,3.7619,2658.3,2657.1,0.8214]
[1729307632715,3.76167,2658.4,2657.2,0.55]
[1729307632910,3.76167,2658.4,2657.3,0.8214]
[1729307633747,4.17276177,2659.7,2657.5,0.8214]
[1729307633919,0.06539503,2659.4,2657.8,0.55]
[1729307634117,5.31622787,2659.5,2658.1,0.55]
[1729307634343,5.31622787,2659.5,2658.2,0.8214]
[1729307634916,9.07644787,2659.5,2658.3,0.7794]
[1729307635115,5.31622787,2659.5,2658.3,0.7794]
[1729307635346,0.53162279,2659.4,2658.5,0.7794]
[1729307636419,3.75991,2659.7,2658.5,0.7794]
[1729307636838,3.75997,2659.6,2658.5,0.7794]
[1729307637252,3.75991,2659.7,2658.5,0.7794]
[1729307637461,3.76013,2659.5,2658.5,0.7794]
[1729307638568,3.76113,2658.8,2658.5,0.7794]
[1729307638719,7.52236,2658.8,2658.5,0.7794]
[1729307639063,7.52236,2658.8,2656.5,3.2218]
[1729307639352,3.76113,2658.8,2656.7,0.7794]
[1729307639551,4.53267,2659.2,2656.8,0.7794]
[1729307639552,3.76149,2658.6,2656.8,0.7794]
[1729307639761,3.76149,2658.6,2656.9,0.02639158]
[1729307639762,0.376149,2658.5,2656.9,0.02639158]
[1729307639922,3.76172,2658.4,2657.0,0.7794]
[1729307640118,4.137699,2658.5,2657.0,0.7794]
[1729307640332,7.899329,2658.5,2657.0,0.7794]
[1729307640556,4.137699,2658.5,2657.0,0.7794]
[1729307640860,4.137739,2658.5,2657.2,0.7794]
[1729307641923,4.137739,2658.5,2657.4,0.7794]
[1729307642123,0.4137739,2658.4,2657.6,0.7794]
[1729307642324,4.137739,2658.5,2657.6,0.7794]
[1729307642719,0.376149,2658.5,2657.6,0.7794]
[1729307643424,4.137689,2658.5,2657.6,0.7794]
[1729307645222,0.376149,2658.5,2657.6,0.7794]
[1729307645423,3.76131,2658.7,2657.6,0.7794]
[1729307645624,3.7611,2658.8,2657.6,0.7794]
[1729307645934,7.462,2658.9,2657.6,0.7794]
[1729307646470,7.462,2658.9,2658.0,0.7794]
[1729307646761,3.7607,2659.1,2658.0,0.7794]
[1729307646966,0.84968,2659.0,2658.0,0.7794]
[1729307648866,4.61051,2659.0,2658.0,0.7794]
[1729307649623,0.84968,2659.0,2658.0,0.7794]
[1729307649828,4.61051,2659.0,2658.0,0.7794]
[1729307650052,0.84968,2659.0,2658.0,0.7794]
[1729307650358,3.7607,2659.1,2658.0,0.7794]
[1729307651131,7.52148,2659.1,2658.0,0.7794]
[1729307651352,3.76081,2659.0,2658.0,0.7794]
[1729307652448,3.76097,2658.9,2658.0,0.7794]
[1729307652626,0.376097,2658.8,2658.0,0.7794]
[1729307652839,3.7607,2659.1,2658.0,0.7794]
[1729307653477,7.52147,2659.1,2658.0,0.7794]
[1729307654141,3.76085,2659.0,2658.0,0.7794]
[1729307654347,3.76054,2659.2,2658.2,0.7794]
[1729307655581,7.52118,2659.2,2658.2,0.7794]
[1729307655745,0.752118,2659.1,2658.2,0.7794]
[1729307655946,3.76054,2659.2,2658.2,0.7794]
[1729307657148,7.52115,2659.2,2658.2,0.7794]
[1729307657386,3.76054,2659.2,2658.2,0.7794]
[1729307660073,7.52114,2659.2,2658.2,0.7794]
[1729307660290,3.76054,2659.2,2658.2,0.7794]
[1729307660598,0.376054,2659.1,2658.2,0.7794]
[1729307661294,3.76091,2659.0,2658.2,0.7794]
[1729307661999,7.52185,2659.0,2658.2,0.7794]
[1729307662562,3.76091,2659.0,2658.2,0.7794]
[1729307663056,7.52183,2659.0,2658.2,0.7794]
[1729307663262,0.7897884,2658.9,2658.2,0.7794]
[1729307669576,0.376054,2659.1,2658.2,0.7794]
[1729307670276,4.136784,2659.1,2658.2,0.7794]
[1729307671374,3.76081,2659.0,2658.2,0.7794]
[1729307671886,7.52174,2659.0,2658.2,0.7794]
[1729307672074,3.76095,2658.9,2658.2,0.7794]
[1729307672270,0.752176,2658.8,2658.2,0.7794]
[1729307672877,4.513326,2658.8,2658.2,0.7794]
[1729307674305,0.752176,2658.8,2658.2,0.7794]
[1729307674510,0.376054,2659.1,2658.2,0.7794]
[1729307674722,4.136804,2659.1,2658.2,0.7794]
[1729307675727,3.76093,2659.0,2658.2,0.7794]
[1729307677791,7.52182,2659.0,2658.2,0.7794]
[1729307677999,0.7897874,2658.9,2658.2,0.7794]
[1729307681303,0.376054,2659.1,2658.2,0.7794]
[1729307681499,4.136744,2659.1,2658.2,0.7794]
[1729307682232,4.132944,2659.1,2658.2,0.7794]
[1729307683383,0.372254,2659.1,2658.2,0.7794]
[1729307685327,7.462,2659.5,2658.5,0.55]
[1729307685538,7.67823418,2659.6,2658.6,0.7798]
[1729307685539,3.76003,2659.6,2658.6,0.7798]
[1729307685897,3.76013,2659.5,2658.6,0.7798]
[1729307686290,3.964,2659.4,2658.6,0.7798]
[1729307686591,3.76013,2659.5,2658.6,0.7798]
[1729307686988,3.76003,2659.6,2658.6,0.7798]
[1729307687231,4.136103,2659.5,2658.6,0.7798]
[1729307687599,3.76028,2659.4,2658.6,0.7798]
[1729307688126,3.76046,2659.3,2658.6,0.7798]
[1729307688314,3.76028,2659.4,2658.6,0.7798]
[1729307688501,7.52117,2659.2,2658.6,0.7798]
[1729307688703,8.273287,2659.2,2658.6,0.7798]
[1729307688917,3.7607,2659.1,2658.6,0.7798]
[1729307691939,3.76025,2659.4,2658.6,0.7798]
[1729307692753,7.52057,2659.4,2658.6,0.7798]
[1729307693248,3.76025,2659.4,2658.6,0.7798]
[1729307693454,4.9462813,2659.4,2658.6,0.7798]
[1729307693847,8.7066213,2659.4,2658.6,0.7798]
[1729307694017,4.9462813,2659.4,2658.6,0.7798]
[1729307694354,8.7066213,2659.4,2658.6,0.7798]
[1729307694518,4.9462813,2659.4,2658.6,0.7798]
[1729307694719,3.76025,2659.4,2658.6,0.7798]
[1729307695345,7.52058,2659.4,2658.6,0.7798]
[1729307695543,7.51548913,2659.4,2658.6,0.7798]
[1729307700523,3.76039,2659.3,2658.6,0.7798]
[1729307700724,3.76005,2659.6,2658.6,0.7798]
[1729307700920,3.75998,2659.6,2658.8,0.7978]
[1729307701120,3.75977,2659.8,2658.8,0.7978]
[1729307701121,3.75982,2659.7,2658.8,0.7978]
[1729307701372,0.751959,2659.6,2658.8,0.7978]
[1729307701530,0.751959,2659.6,2658.9,0.55]
[1729307701721,3.75975,2659.8,2659.0,0.7978]
[1729307702859,7.51956,2659.8,2659.0,0.7978]
[1729307703064,3.75975,2659.8,2659.0,0.7978]
[1729307703230,7.51952,2659.8,2659.0,0.7978]
[1729307703428,3.75975,2659.8,2659.0,0.7978]
[1729307703776,3.75975,2659.8,2658.9,0.55]
[1729307703777,3.91820418,2660.3,2659.1,0.55]
[1729307703981,3.75924,2660.2,2659.2,0.7978]
[1729307704132,3.75934,2660.1,2659.2,0.7978]
[1729307704328,4.511198,2660.1,2659.2,0.7978]
[1729307704557,3.75942,2660.0,2659.2,0.7978]
[1729307704761,4.511128,2660.1,2659.2,0.7978]
[1729307704940,0.751858,2660.1,2659.3,0.55]
[1729307705144,3.75898,2660.3,2659.4,0.7978]
[1729307706043,3.75862,2660.6,2659.4,0.7978]
[1729307706250,3.75884,2660.4,2659.6,0.7978]
[1729307706564,11.7727846,2661.1,2659.7,0.55]
[1729307706762,3.75872,2660.5,2659.8,0.7978]
[1729307707066,4.510435,2660.5,2659.8,0.7978]
[1729307707272,0.751715,2660.5,2659.8,0.7978]
[1729307707567,4.510405,2660.5,2659.8,0.7978]
[1729307708384,3.75899,2660.3,2659.8,0.7978]
[1729307708934,6.390505,2660.5,2659.8,0.7978]
[1729307709136,3.75899,2660.3,2659.8,0.7978]
[1729307710155,0.6390505,2660.4,2659.8,0.7978]
[1729307711290,4.3978905,2660.4,2659.8,0.7978]
[1729307712360,4.3978805,2660.4,2659.8,0.7978]
[1729307712970,0.6390505,2660.4,2659.8,0.7978]
[1729307713299,0.62778405,2660.3,2659.8,0.7978]
[1729307715207,1.8801,2660.5,2660.0,0.831]
[1729307721364,1.8801,2660.5,2660.2,0.831]
[1729307726390,1.8801,2660.5,2660.4,1.381]
[1729307729933,10.462,2662.3,2659.6,0.48089063]
[1729307729934,0.1280142,2662.0,2660.8,0.55]
[1729307730095,7.6413442,2662.0,2661.0,0.55]
[1729307730292,7.6413442,2662.0,2661.1,0.831]
[1729307730293,0.84007442,2661.9,2661.1,0.831]
[1729307730704,4.59679442,2661.9,2661.3,0.831]
[1729307731094,0.84007442,2661.9,2661.3,0.831]
[1729307731397,0.1280142,2662.0,2661.3,0.831]
[1729307731715,3.8846542,2662.0,2661.3,0.831]
[1729307732241,0.1280142,2662.0,2661.6,0.831]
[1729307732529,0.1280142,2662.0,2661.9,1.381]
[1729307734616,0.1280142,2662.0,2661.9,0.831]
[1729307736929,0.1280142,2662.0,2660.0,1.3508]
[1729307737123,0.1280142,2662.0,2660.4,0.55]
[1729307737326,0.1280142,2662.0,2660.7,0.8008]
[1729307737506,3.75673,2661.9,2660.6,0.8008]
[1729307737905,0.59682762,2662.0,2660.6,0.8008]
[1729307738133,3.75754,2661.4,2660.6,0.8008]
[1729307738445,3.75715,2661.6,2660.7,0.24]
[1729307739213,3.75728,2661.5,2660.7,0.24]
[1729307739412,3.75715,2661.6,2660.7,0.24]
[1729307739632,3.75729,2661.5,2660.7,0.24]
[1729307739803,0.751444,2661.4,2660.7,0.24]
[1729307740007,3.75715,2661.6,2660.7,0.55]
[1729307740210,3.75715,2661.6,2660.8,0.8008]
[1729307740600,7.51382,2661.8,2660.9,0.55]
[1729307740829,3.75701,2661.7,2660.9,0.55]
[1729307741032,4.56031,2661.9,2661.0,0.8008]
[1729307741219,0.84449642,2661.8,2661.1,0.55]
[1729307741419,0.1280142,2662.0,2661.4,0.8008]
[1729307742645,0.1280142,2662.0,2661.5,0.62511668]
[1729307742955,0.1280142,2662.0,2661.6,0.8008]
[1729307743169,0.1280142,2662.0,2661.7,0.55]
[1729307743316,0.1280142,2662.0,2661.9,0.55]
[1729307744263,0.1280142,2662.0,2661.8,0.8008]
[1729307745458,0.1280142,2662.0,2661.4,0.67]
[1729307745459,0.1280142,2662.0,2661.9,1.3508]
[1729307747216,0.1280142,2662.0,2661.9,0.8008]
[1729307752280,0.1280142,2662.0,2661.4,0.67]
[1729307752281,0.1280142,2662.0,2661.5,0.8008]
[1729307756552,0.51646062,2662.0,2661.5,0.8008]
[1729307756755,0.51646062,2662.0,2660.7,0.7892]
[1729307756756,3.757,2661.7,2660.7,0.7892]
[1729307756980,3.75694,2661.8,2660.7,0.7892]
[1729307757892,3.75694,2661.8,2660.8,0.0751526]
[1729307758119,3.75685,2661.8,2660.7,0.7892]
[1729307758288,0.8063,2661.4,2660.7,0.7892]
[1729307758874,4.56372,2661.4,2660.7,0.7892]
[1729307759104,3.75765,2661.3,2660.7,0.7892]
[1729307759418,3.75771,2661.2,2660.7,0.7892]
[1729307759568,0.375771,2661.1,2659.8,0.758]
[1729307759772,3.75771,2661.2,2659.9,0.83316839]
[1729307759972,3.75771,2661.2,2659.9,0.758]
[1729307760174,4.56381,2661.4,2660.0,0.83316839]
[1729307760403,8.32133,2661.4,2660.1,0.758]
[1729307760588,8.32133,2661.4,2660.0,1.02345538]
[1729307760589,4.56381,2661.4,2660.4,0.758]
[1729307760787,5.020191,2661.4,2660.4,0.83316839]
[1729307761382,11.5430142,2662.0,2660.5,0.55]
[1729307761383,12.1432542,2662.0,2660.5,0.55]
[1729307761596,4.6812542,2662.0,2660.8,0.758]
[1729307761799,4.6812542,2662.0,2660.7,0.55]
[1729307761800,4.6812542,2662.0,2661.1,0.758]
[1729307762910,0.9246142,2662.0,2661.1,0.758]
[1729307763434,0.9246142,2662.0,2661.3,0.758]
[1729307763435,0.1280142,2662.0,2661.3,0.758]
[1729307763583,0.1280142,2662.0,2661.4,0.07514462]
[1729307763776,0.1280142,2662.0,2661.7,0.758]
[1729307763982,0.1280142,2662.0,2661.9,0.758]
[1729307764242,0.1280142,2662.0,2661.9,1.308]
[1729307765376,4.2e-06,2662.0,2661.9,1.308]
[1729307767378,4.2e-06,2662.0,2661.9,1.978]
[1729307767582,4.2e-06,2662.0,2661.9,2.1758]
[1729307768679,4.2e-06,2662.0,2661.9,1.6258]
[1729307768889,4.2e-06,2662.0,2661.9,1.428]
[1729307769116,4.2e-06,2662.0,2661.9,0.67]
[1729307769559,4.2e-06,2662.0,2661.9,1.428]
[1729307770258,4.2e-06,2662.0,2661.9,1.978]
[1729307770432,4.2e-06,2662.0,2661.9,1.308]
[1729307770634,4.2e-06,2662.0,2661.9,0.758]
[1729307770844,4.2e-06,2662.0,2661.4,0.758]
[1729307771559,4.2e-06,2662.0,2661.6,0.5]
[1729307771868,4.2e-06,2662.0,2661.7,0.07513455]
[1729307772157,4.2e-06,2662.0,2661.8,0.07512504]
[1729307772331,4.2e-06,2662.0,2661.7,0.55]
[1729307772532,4.2e-06,2662.0,2661.8,0.07512505]
[1729307772760,4.2e-06,2662.0,2661.7,0.55]
[1729307772932,4.2e-06,2662.0,2661.8,0.31]
[1729307773519,4.2e-06,2662.0,2661.9,0.07512507]
[1729307773863,4.2e-06,2662.0,2661.8,0.31]
[1729307775550,4.2e-06,2662.0,2661.9,1.39563045]
[1729307777287,4.2e-06,2662.0,2661.9,1.70563045]
[1729307777980,4.2e-06,2662.0,2661.9,1.6305]
[1729307780289,4.2e-06,2662.0,2661.9,1.3205]
[1729307782485,4.2e-06,2662.0,2660.9,3.41288148]
[1729307782486,4.2e-06,2662.0,2661.6,0.7705]
[1729307782981,4.2e-06,2662.0,2661.7,0.0751298]
[1729307783184,4.2e-06,2662.0,2661.8,0.21]
[1729307786841,0.8327,2661.9,2661.8,0.21]
[1729307787191,4.2e-06,2662.0,2661.8,0.21]
[1729307787839,4.2e-06,2662.0,2661.3,0.7705]
[1729307788148,4.2e-06,2662.0,2661.4,1.36]
[1729307788300,4.2e-06,2662.0,2661.5,0.21305]
[1729307794663,4.2e-06,2662.0,2661.4,1.36]
[1729307794664,3.75699,2661.7,2661.4,1.36]
[1729307794856,0.7992,2661.7,2661.4,1.36]
[1729307795756,0.7992,2661.7,2660.9,0.07515026]
[1729307796343,0.7992,2661.7,2661.0,0.55]
[1729307796561,0.7992042,2662.0,2661.3,0.7654]
[1729307796762,0.7992042,2662.0,2661.3,0.84054163]
[1729307797872,0.7992042,2662.0,2661.3,0.7654]
[1729307798666,0.7992042,2662.0,2661.4,0.62514305]
[1729307798881,0.7992042,2662.0,2661.4,0.55]
[1729307799025,0.7992042,2662.0,2661.5,0.07513579]
[1729307799497,4.2e-06,2662.0,2661.4,0.62513579]
[1729307799701,4.2e-06,2662.0,2661.4,0.55]
[1729307800180,4.2e-06,2662.0,2661.3,0.7654]
[1729307800181,4.2e-06,2662.0,2661.6,0.55]
[1729307800503,4.2e-06,2662.0,2661.4,0.55]
[1729307800709,4.2e-06,2662.0,2661.6,1.3154]
[1729307800911,4.2e-06,2662.0,2661.7,0.0751279]
[1729307801113,4.2e-06,2662.0,2661.7,0.55]
[1729307801311,4.2e-06,2662.0,2661.8,0.07512795]
[1729307801534,4.2e-06,2662.0,2661.7,0.55]
[1729307801830,4.2e-06,2662.0,2661.8,0.07512795]
[1729307801968,4.2e-06,2662.0,2661.7,0.55]
[1729307802412,4.2e-06,2662.0,2661.8,0.07512797]
[1729307802674,4.2e-06,2662.0,2661.9,0.55]
[1729307803608,4.2e-06,2662.0,2661.8,0.55]
[1729307803910,4.2e-06,2662.0,2661.7,0.55]
[1729307804518,4.2e-06,2662.0,2661.9,0.55]
[1729307805213,4.2e-06,2662.0,2661.6,0.7654]
[1729307805214,4.2e-06,2662.0,2661.7,0.55]
[1729307806681,4.2e-06,2662.0,2661.9,1.3154]
[1729307807341,4.2e-06,2662.0,2661.2,0.55]
[1729307807508,0.7992042,2662.0,2661.1,0.7654]
[1729307809936,0.7992042,2662.0,2661.2,0.55]
[1729307810434,0.7992042,2662.0,2661.4,0.55]
[1729307810952,0.7992042,2662.0,2661.2,0.55]
[1729307812154,0.7992042,2662.0,2661.3,0.07514287]